bitfinex/quotes_ETHUSD_20250129
["timestamp","ask_amount","ask_price","bid_price","bid_amount"]
[1738190052399,3.16837,3156.2,3155.7,3.16885]
[1738190052599,3.16837,3156.2,3155.5,0.7846]
[1738190052802,3.16856,3156.0,3155.5,0.7846]
[1738190053110,3.16856,3156.0,3155.5,3.95366]
[1738190053313,3.16856,3156.0,3155.5,0.7846]
[1738190053520,3.1688,3155.8,3155.5,0.7846]
[1738190053987,3.16898,3155.6,3155.1,3.95407]
[1738190054328,3.16949,3155.1,3154.4,3.95471]
[1738190054532,3.16961,3155.0,3154.4,3.95471]
[1738190055318,3.16961,3155.0,3154.5,3.17004]
[1738190055682,3.16961,3155.0,3154.4,0.7846]
[1738190056384,3.502681,3155.0,3154.4,0.7846]
[1738190056578,3.16978,3154.8,3154.4,0.7846]
[1738190057914,0.1611,3155.1,3154.5,3.17003]
[1738190058121,3.33064,3155.1,3154.5,3.17003]
[1738190058315,3.16963,3155.0,3154.4,3.95474]
[1738190061425,3.81964,3155.0,3154.4,3.95474]
[1738190062821,3.81964,3155.0,3154.4,3.17014]
[1738190063002,6.9893,3155.0,3154.4,3.17014]
[1738190063331,3.1697,3154.9,3154.4,3.17014]
[1738190063541,3.16977,3154.8,3154.3,3.17027]
[1738190064741,3.81964,3155.0,3154.4,3.17015]
[1738190064742,3.16968,3154.9,3154.4,3.17015]
[1738190065657,3.16978,3154.8,3154.2,3.17034]
[1738190066013,3.16978,3154.8,3153.9,3.1706]
[1738190066014,3.17014,3154.5,3153.9,3.1706]
[1738190066725,3.17018,3154.4,3153.9,3.1706]
[1738190067123,3.17018,3154.4,3153.7,3.17087]
[1738190067330,3.17018,3154.4,3153.8,3.17076]
[1738190067653,0.1611,3154.3,3153.4,0.7931]
[1738190067815,3.17048,3154.1,3153.5,3.17099]
[1738190068015,3.33137,3154.3,3153.6,3.17092]
[1738190068332,3.1704,3154.2,3153.6,3.17092]
[1738190069225,3.1704,3154.2,3153.0,3.53073712]
[1738190069226,3.17099,3153.6,3153.1,0.8265]
[1738190069422,3.171,3153.6,3153.2,0.35924712]
[1738190072252,3.3321,3153.6,3153.2,0.35924712]
[1738190072986,3.17128,3153.3,3153.2,0.35924712]
[1738190073936,3.17123,3153.4,3153.2,0.35924712]
[1738190075274,3.17128,3153.3,3153.2,0.35924712]
[1738190075578,3.17123,3153.4,3152.9,0.35924712]
[1738190075781,3.17131,3153.3,3152.9,0.35924712]
[1738190076373,3.17123,3153.4,3152.9,0.35924712]
[1738190077499,3.17131,3153.3,3152.9,0.35924712]
[1738190077792,3.805564,3153.3,3152.9,0.35924712]
[1738190078610,3.17131,3153.3,3152.9,0.35924712]
[1738190079095,3.17119,3153.4,3152.9,0.35924712]
[1738190079461,3.17109,3153.5,3152.9,0.35924712]
[1738190079462,3.17065,3154.0,3153.3,3.17121]
[1738190079708,0.33315,3154.1,3152.9,0.35924712]
[1738190079709,3.17008,3154.5,3153.8,3.17069]
[1738190079879,3.17021,3154.4,3153.8,3.17069]
[1738190081186,3.17037,3154.2,3153.7,0.7962]
[1738190081819,3.17037,3154.2,3153.7,3.96706]
[1738190083284,3.1702,3154.4,3153.7,3.96706]
[1738190083484,3.859222,3154.4,3153.7,3.96706]
[1738190084214,7.029482,3154.4,3153.7,3.96706]
[1738190084375,3.859222,3154.4,3153.7,3.96706]
[1738190084576,3.1703,3154.3,3153.7,3.96706]
[1738190084813,0.689022,3154.4,3153.7,0.7962]
[1738190084969,0.1611,3154.7,3154.0,3.17053]
[1738190085176,3.17003,3154.6,3154.0,3.17053]
[1738190085686,6.34009,3154.6,3154.0,3.17053]
[1738190085869,3.17003,3154.6,3154.0,3.17053]
[1738190087818,3.17003,3154.6,3153.7,0.7962]
[1738190087976,3.17014,3154.5,3153.9,3.17061]
[1738190088297,3.17026,3154.4,3153.8,3.17075]
[1738190088496,3.17035,3154.3,3153.7,3.96699]
[1738190091199,3.17038,3154.2,3153.7,3.96699]
[1738190091583,3.17025,3154.4,3153.7,3.96699]
[1738190092006,3.17029,3154.3,3153.7,3.96699]
[1738190097612,3.17047,3154.1,3153.3,3.17124]
[1738190097824,3.17088,3153.7,3153.2,4.34259712]
[1738190099101,3.17088,3153.7,3153.2,1.17124712]
[1738190099339,3.1712,3153.4,3153.2,0.35924712]
[1738190099647,3.48832,3153.4,3153.0,0.35924712]
[1738190099791,3.1712,3153.4,3153.0,0.35924712]
[1738190100934,3.17098,3153.6,3153.1,3.17146]
[1738190101350,3.17094,3153.7,3153.1,3.17146]
[1738190101737,3.17098,3153.6,3153.0,3.53075712]
[1738190102324,3.17098,3153.6,3153.0,6.70227712]
[1738190102939,6.34204,3153.6,3153.0,3.53075712]
[1738190103147,3.17098,3153.6,3153.0,3.53075712]
[1738190103313,3.17093,3153.7,3153.1,3.17142]
[1738190103512,3.17098,3153.6,3153.0,3.53075712]
[1738190104354,3.17098,3153.6,3153.1,3.17146]
[1738190105542,3.17098,3153.6,3153.2,0.35924712]
[1738190106444,3.17112,3153.5,3153.2,0.35924712]
[1738190107049,3.17125,3153.4,3153.2,0.35924712]
[1738190107351,3.17118,3153.4,3153.2,0.35924712]
[1738190108357,3.88238,3153.3,3153.2,0.35924712]
[1738190108540,3.1718,3152.8,3152.4,0.35924712]
[1738190110157,3.172,3152.6,3152.4,0.35924712]
[1738190111174,0.55,3152.7,3152.4,0.35924712]
[1738190111506,3.72188,3152.7,3152.4,0.35924712]
[1738190111861,6.89385,3152.7,3152.4,0.35924712]
[1738190112061,3.72188,3152.7,3152.4,0.35924712]
[1738190112513,3.17089,3153.7,3153.1,3.17141]
[1738190112715,0.67103661,3154.6,3153.9,0.7522]
[1738190113023,0.67103661,3154.6,3154.2,0.7522]
[1738190113210,6.61e-06,3154.6,3154.5,3.93727]
[1738190113539,0.831196,3156.3,3154.5,3.93727]
[1738190113540,0.831196,3156.3,3155.1,3.015]
[1738190113688,0.831196,3156.3,3156.2,3.16836]
[1738190114034,2.66e-06,3156.8,3156.3,3.015]
[1738190114184,2.66e-06,3156.8,3156.7,3.16786]
[1738190114700,0.3311517,3157.3,3157.0,3.16753]
[1738190114943,3.16655,3158.1,3157.2,3.98146]
[1738190115224,0.316655,3158.0,3157.4,3.16715]
[1738190115397,6.483255,3158.0,3157.2,3.98146]
[1738190116192,3.16666,3157.9,3157.2,3.98146]
[1738190116387,3.16679,3157.8,3157.2,0.8141]
[1738190117130,3.16734,3157.3,3156.7,0.7559]
[1738190117427,3.484074,3157.3,3156.7,0.7559]
[1738190117795,3.16746,3157.1,3156.7,0.7559]
[1738190118290,3.16746,3157.1,3156.1,3.96535]
[1738190118490,0.316734,3157.3,3156.2,3.16831]
[1738190118728,0.316655,3158.0,3156.1,0.7969]
[1738190118729,0.55,3157.4,3156.1,0.7969]
[1738190118928,3.16769,3156.9,3156.1,0.7969]
[1738190119891,0.1611,3157.5,3156.1,0.7969]
[1738190120089,0.55,3157.2,3156.1,0.7969]
[1738190120323,3.16785,3156.8,3156.1,0.7969]
[1738190120514,3.16788,3156.7,3156.1,0.7969]
[1738190122094,3.16812,3156.5,3156.1,0.7969]
[1738190122294,3.16788,3156.7,3155.5,0.8247]
[1738190122503,0.316788,3156.6,3155.5,0.8247]
[1738190122726,3.16878,3155.8,3155.1,0.8247]
[1738190122947,0.477888,3156.6,3155.1,0.8247]
[1738190122948,3.16876,3155.9,3155.1,0.8247]
[1738190123107,3.16901,3155.6,3155.1,0.8247]
[1738190123299,3.16917,3155.4,3155.1,0.8247]
[1738190123986,3.16956,3155.1,3154.5,0.8247]
[1738190124231,3.16979,3154.8,3154.5,0.8247]
[1738190124544,3.17004,3154.6,3154.1,0.8247]
[1738190125888,3.17007,3154.5,3154.1,0.8247]
[1738190126390,3.16979,3154.8,3154.1,0.8247]
[1738190126703,3.16998,3154.6,3154.1,0.8247]
[1738190129400,3.16979,3154.8,3154.1,0.8247]
[1738190129603,3.16979,3154.8,3154.1,3.99513]
[1738190130322,3.16959,3155.0,3154.1,3.99513]
[1738190130635,3.16983,3154.8,3154.1,3.99513]
[1738190131465,3.16983,3154.8,3154.1,0.8247]
[1738190131620,3.1691,3155.5,3154.5,3.16999]
[1738190131802,0.31691,3155.5,3154.2,0.015]
[1738190132000,3.16907,3155.5,3155.0,0.8173]
[1738190132226,0.08168178,3155.4,3155.0,0.8173]
[1738190132752,0.08168178,3155.4,3155.3,3.16927]
[1738190132916,0.08168178,3155.4,3155.0,0.8173]
[1738190132917,3.16835,3156.3,3155.6,3.16889]
[1738190133239,0.08221366,3156.2,3155.9,0.8173]
[1738190133445,3.16799,3156.6,3155.9,0.8173]
[1738190133733,0.08224016,3156.1,3155.9,0.8173]
[1738190134053,0.0821779,3156.0,3155.9,0.8173]
[1738190134238,3.1681,3156.5,3155.9,0.8173]
[1738190134406,0.0821779,3156.0,3155.9,0.8173]
[1738190134607,3.1681,3156.5,3155.9,0.8173]
[1738190134807,0.08245416,3156.0,3155.9,0.8173]
[1738190135023,3.16817,3156.4,3155.9,0.8173]
[1738190135196,0.08243451,3156.0,3155.9,0.8173]
[1738190135404,3.16817,3156.4,3155.9,0.8173]
[1738190135700,0.08243451,3156.0,3155.9,3.98587]
[1738190135935,3.16799,3156.6,3156.0,3.16853]
[1738190137503,0.1611,3157.5,3156.1,3.16846]
[1738190137741,0.1611,3157.5,3156.4,3.16816]
[1738190137742,0.08052976,3156.5,3156.4,3.16816]
[1738190138038,3.16702,3157.6,3157.0,3.16755]
[1738190138212,3.16706,3157.5,3156.9,3.16766]
[1738190138941,3.16689,3157.7,3157.0,3.16755]
[1738190139828,3.16702,3157.6,3156.9,3.16766]
[1738190140015,6.33382,3157.7,3157.0,3.16751]
[1738190140216,3.16689,3157.7,3157.0,0.715577]
[1738190140445,3.16678,3157.8,3157.1,3.16746]
[1738190141039,3.16664,3158.0,3157.3,3.16724]
[1738190141239,3.1668,3157.8,3157.2,3.16729]
[1738190142748,3.16663,3158.0,3157.1,3.16746]
[1738190142949,3.16669,3157.9,3157.2,3.16728]
[1738190143955,3.16663,3158.0,3157.2,3.16728]
[1738190143956,3.16679,3157.8,3157.2,3.16728]
[1738190144952,3.16663,3158.0,3157.1,0.7050547]
[1738190145117,3.16663,3158.0,3157.4,3.16715]
[1738190145941,3.16667,3157.9,3157.2,3.1673]
[1738190146433,3.16689,3157.7,3157.1,3.16739]
[1738190147546,3.16666,3157.9,3157.2,3.16734]
[1738190147745,3.16666,3157.9,3157.3,3.16722]
[1738190147949,3.16666,3157.9,3157.3,3.800681]
[1738190148810,0.3272382,3158.4,3156.4,3.93869]
[1738190148811,3.16748,3157.1,3156.4,3.93869]
[1738190149248,3.16776,3156.9,3156.4,0.7706]
[1738190149612,0.1611,3158.3,3156.4,0.7706]
[1738190149868,3.16712,3157.5,3156.8,3.16768]
[1738190150063,3.16743,3157.2,3156.4,0.7706]
[1738190150277,3.16752,3157.1,3156.5,3.16806]
[1738190151569,3.16758,3157.0,3156.4,3.93873]
[1738190152671,0.07384653,3156.9,3156.5,3.16804]
[1738190153534,0.07384653,3156.9,3156.4,0.7706]
[1738190153535,3.16791,3156.7,3156.4,0.7706]
[1738190153771,0.07349367,3156.6,3156.4,0.7706]
[1738190153970,3.16771,3156.9,3156.4,0.7706]
[1738190154305,0.07312631,3156.5,3156.4,0.7706]
[1738190154510,3.16771,3156.9,3156.4,0.7706]
[1738190154704,0.07312631,3156.5,3156.4,0.7706]
[1738190155009,0.07312631,3156.5,3156.4,4.332567]
[1738190155173,3.16753,3157.1,3156.4,4.332567]
[1738190155375,0.07312631,3156.5,3156.4,4.332567]
[1738190155575,3.16753,3157.1,3156.4,1.164477]
[1738190155774,3.16753,3157.1,3156.5,3.16805]
[1738190156413,3.16756,3157.0,3156.5,3.16805]
[1738190161813,3.16777,3156.8,3156.2,3.1683]
[1738190162015,3.16777,3156.8,3156.0,3.98881]
[1738190162016,3.16782,3156.8,3156.0,3.98881]
[1738190162190,0.1611,3156.8,3156.0,0.8203]
[1738190162522,3.16848,3156.1,3155.7,0.8203]
[1738190162901,3.16869,3155.9,3155.4,3.16913]
[1738190163220,3.16848,3156.1,3155.4,3.802977]
[1738190163532,6.33703,3156.1,3155.4,3.802977]
[1738190163689,3.16848,3156.1,3155.5,3.16899]
[1738190164122,3.16848,3156.1,3155.4,3.802977]
[1738190164327,3.16867,3155.9,3155.4,3.802977]
[1738190166900,3.16848,3156.1,3155.4,3.802977]
[1738190167091,3.16834,3156.3,3155.5,0.4623277]
[1738190167291,0.1611,3157.2,3156.1,0.7948]
[1738190167512,0.1611,3157.2,3156.8,3.16776]
[1738190167822,0.06062143,3157.1,3156.6,3.1679]
[1738190168189,0.06062143,3157.1,3156.7,3.16784]
[1738190168388,3.16722,3157.4,3156.8,3.16773]
[1738190168596,0.0585532,3157.0,3156.8,3.16773]
[1738190169064,3.16727,3157.3,3156.8,3.16773]
[1738190169267,0.05847126,3156.9,3156.8,3.16773]
[1738190169491,3.16727,3157.3,3156.8,3.16773]
[1738190169677,0.05849091,3156.9,3156.8,3.16773]
[1738190169855,3.16727,3157.3,3156.8,3.16773]
[1738190170376,0.05894537,3157.2,3156.8,3.16773]
[1738190170575,3.16727,3157.3,3156.8,3.16773]
[1738190170788,0.05871701,3157.2,3156.9,4.299743]
[1738190170990,3.16669,3157.9,3157.1,3.16746]
[1738190171303,0.05912855,3157.1,3157.0,3.16756]
[1738190171509,3.16681,3157.8,3157.0,3.16756]
[1738190171654,3.16681,3157.8,3157.1,3.16739]
[1738190171988,3.22657998,3157.7,3157.1,3.9141023]
[1738190173791,3.22657998,3157.7,3157.2,3.16734]
[1738190175298,0.05969998,3157.7,3157.4,3.16708]
[1738190175655,3.16666,3157.9,3157.4,3.16708]
[1738190175859,0.05976671,3157.6,3157.4,3.16708]
[1738190176054,3.16666,3157.9,3157.2,3.16736]
[1738190176274,0.05970451,3157.5,3157.2,3.55876723]
[1738190176454,3.16677,3157.8,3157.2,3.55876723]
[1738190176657,0.05964231,3157.4,3157.2,3.55876723]
[1738190176911,3.16677,3157.8,3157.2,3.55876723]
[1738190177390,0.05982891,3157.7,3157.2,3.55876723]
[1738190178768,0.05982891,3157.7,3157.3,3.16725]
[1738190179089,3.16677,3157.8,3157.3,3.16725]
[1738190179294,0.05953844,3157.6,3157.3,3.16725]
[1738190179494,0.05960065,3157.7,3157.3,3.52311572]
[1738190179795,3.16677,3157.8,3157.3,3.52311572]
[1738190180092,0.05974707,3157.6,3157.3,3.52311572]
[1738190180292,3.16677,3157.8,3157.3,3.52311572]
[1738190180470,0.05968487,3157.5,3157.3,3.52311572]
[1738190180659,3.16677,3157.8,3157.4,0.3914523]
[1738190182688,0.0598635,3157.7,3157.4,0.3914523]
[1738190182875,3.16677,3157.8,3157.4,0.3914523]
[1738190183069,0.05976215,3157.6,3157.4,0.3914523]
[1738190183277,3.16677,3157.8,3157.4,0.3914523]
[1738190183488,0.05971945,3157.5,3157.4,0.3914523]
[1738190183664,3.16677,3157.8,3157.4,0.3914523]
[1738190183865,0.05989869,3157.5,3157.4,3.5586123]
[1738190184065,3.16656,3158.0,3157.4,0.3914523]
[1738190184265,0.05990119,3157.5,3157.4,0.3914523]
[1738190184567,0.0599207,3157.5,3157.4,0.3914523]
[1738190184802,3.16656,3158.0,3157.4,0.3914523]
[1738190184996,0.0599529,3157.5,3157.4,0.3914523]
[1738190185202,3.32749,3158.2,3157.4,0.3914523]
[1738190185497,3.16652,3158.1,3157.5,0.7539]
[1738190185663,3.16652,3158.1,3157.5,3.92095]
[1738190186297,3.16652,3158.1,3157.5,0.7539]
[1738190186497,3.16652,3158.1,3157.6,3.16694]
[1738190186813,0.1611,3158.2,3157.7,3.558924]
[1738190187112,3.32749,3158.2,3157.7,0.392084]
[1738190188214,3.16649,3158.1,3157.7,0.392084]
[1738190189110,3.32749,3158.2,3157.7,0.392084]
[1738190189489,6.49394,3158.2,3157.8,0.3559044]
[1738190189902,3.32749,3158.2,3157.8,0.3559044]
[1738190190102,0.1661382,3158.4,3157.8,0.3559044]
[1738190190427,0.1661382,3158.4,3158.0,3.1665]
[1738190190593,0.1661382,3158.4,3158.0,6.33299]
[1738190190916,0.1661382,3158.4,3158.0,3.16649]
[1738190197442,0.05919151,3158.3,3158.0,3.16649]
[1738190197606,0.05919151,3158.3,3158.1,0.316649]
[1738190201003,0.05919151,3158.3,3158.1,3.483099]
[1738190201427,0.05919151,3158.3,3158.1,0.316649]
[1738190204251,0.05919151,3158.3,3157.8,3.1667]
[1738190205438,0.05919151,3158.3,3157.9,3.16664]
[1738190206370,0.05919151,3158.3,3157.8,3.16668]
[1738190206557,0.05919151,3158.3,3157.9,3.16665]
[1738190207557,0.05919151,3158.3,3158.0,3.16654]
[1738190207757,0.05919151,3158.3,3157.5,3.92091]
[1738190207923,0.05919151,3158.3,3158.0,3.16653]
[1738190208126,0.05919151,3158.3,3158.1,3.16639]
[1738190208321,0.05919151,3158.3,3158.2,3.95286]
[1738190208524,0.05919151,3158.3,3158.2,3.96036]
[1738190208784,0.1661382,3158.4,3158.3,3.16626]
[1738190208924,0.1661382,3158.4,3158.3,4.195561]
[1738190209573,0.1661382,3158.4,3158.3,4.48929221]
[1738190209755,0.1661382,3158.4,3158.3,4.73177053]
[1738190211023,0.1661382,3158.4,3158.3,5.02552581]
[1738190212363,0.1661382,3158.4,3158.3,5.66573715]
[1738190212835,0.1661382,3158.4,3158.3,5.02552581]
[1738190213040,0.005,3158.7,3158.3,5.02552581]
[1738190213041,8.2e-06,3158.7,3158.6,6.98115]
[1738190213247,8.2e-06,3158.7,3158.6,10.0347236]
[1738190213453,8.2e-06,3158.7,3158.6,10.0497236]
[1738190214163,8.2e-06,3158.7,3158.6,10.28470192]
[1738190214528,8.2e-06,3158.7,3158.6,10.5784572]
[1738190214745,8.2e-06,3158.7,3158.6,12.00316418]
[1738190215359,8.2e-06,3158.7,3158.6,12.29689539]
[1738190220031,1e-05,3159.2,3159.1,3.16545]
[1738190220237,0.005,3160.4,3159.8,0.015]
[1738190220546,0.005,3160.4,3160.3,3.16425]
[1738190221638,0.0465481,3160.4,3160.3,3.16425]
[1738190222069,0.005,3160.4,3160.3,3.16425]
[1738190222235,0.005,3160.4,3160.3,3.797111]
[1738190223935,0.1661,3160.4,3159.6,3.16487]
[1738190224139,0.1661,3160.4,3158.7,0.31376415]
[1738190224140,3.16448,3160.1,3159.4,3.16508]
[1738190224572,3.36768045,3160.0,3159.4,3.16508]
[1738190224770,3.16465,3159.9,3159.2,3.16528]
[1738190224946,3.16465,3159.9,3159.3,3.16521]
[1738190225280,0.04193115,3159.8,3159.4,3.16514]
[1738190225850,0.04193115,3159.8,3159.2,6.33061]
[1738190226035,0.04193115,3159.8,3159.2,3.16527]
[1738190226244,3.16492,3159.7,3159.0,3.16547]
[1738190226463,0.1611,3159.6,3159.0,3.16547]
[1738190226664,0.20284423,3159.6,3159.0,3.16547]
[1738190227064,0.20284423,3159.6,3159.1,3.16545]
[1738190227267,0.20284423,3159.6,3158.8,3.16571]
[1738190227268,0.53780913,3159.6,3158.8,3.16571]
[1738190227479,3.16507,3159.5,3159.0,3.16554]
[1738190227678,3.16507,3159.5,3158.8,3.16571]
[1738190227679,0.04083949,3159.5,3158.8,6.33138]
[1738190227873,3.20592949,3159.5,3158.9,3.16564]
[1738190228073,3.20592949,3159.5,3158.8,3.16567]
[1738190228291,3.16515,3159.4,3158.8,3.16567]
[1738190228491,3.57647857,3159.4,3158.6,3.16594]
[1738190228648,3.16537,3159.2,3158.7,3.16584]
[1738190228866,0.1611,3159.1,3158.7,3.16584]
[1738190229059,0.201914,3159.1,3158.6,3.16594]
[1738190229480,0.1611,3159.1,3158.4,3.81222643]
[1738190229720,0.04036148,3159.0,3158.5,3.16602]
[1738190230270,0.04036148,3159.0,3158.4,3.16614]
[1738190230500,0.04036148,3159.0,3158.7,0.7583]
[1738190230794,0.1611,3160.0,3159.5,3.16505]
[1738190231000,0.1611,3160.0,3159.5,3.16498]
[1738190231160,0.03792684,3159.9,3159.5,3.16498]
[1738190233766,0.03792684,3159.9,3159.8,3.16475]
[1738190234103,0.005,3160.4,3160.3,3.16425]
[1738190234896,0.005,3160.4,3160.1,3.16436]
[1738190235096,0.03621258,3160.4,3160.1,3.16436]
[1738190235461,0.005,3160.4,3160.1,3.16436]
[1738190235697,0.1611,3160.3,3159.9,3.16463]
[1738190235914,0.19182297,3160.3,3160.0,3.16454]
[1738190236425,0.19182297,3160.3,3160.0,3.16448]
[1738190237405,0.19182297,3160.3,3159.8,3.16474]
[1738190237711,0.1611,3160.3,3159.9,3.16462]
[1738190237916,0.03066087,3160.2,3159.6,3.16492]
[1738190238103,3.1645,3160.1,3159.5,3.16504]
[1738190238306,3.19509718,3160.1,3159.5,3.16504]
[1738190238516,3.19509718,3160.1,3159.6,3.16493]
[1738190239243,0.03059718,3160.1,3159.6,3.16493]
[1738190239517,0.36890372,3160.1,3159.6,3.16493]
[1738190239818,0.03086971,3160.0,3159.6,3.16493]
[1738190240190,0.03086971,3160.0,3159.5,3.16502]
[1738190240496,3.32584,3159.9,3159.1,3.16543]
[1738190240692,3.16479,3159.8,3159.2,3.16534]
[1738190240922,3.19493899,3159.8,3159.2,3.16534]
[1738190241116,3.53054289,3159.8,3159.2,3.16534]
[1738190241322,0.36575289,3159.8,3159.3,3.16524]
[1738190241517,0.03014899,3159.8,3159.3,3.16524]
[1738190241896,3.19496899,3159.8,3159.1,3.16543]
[1738190242100,0.03014899,3159.8,3159.2,3.16533]
[1738190242692,3.16492,3159.7,3159.0,3.16555]
[1738190243039,3.1947902,3159.7,3159.1,3.16544]
[1738190244208,3.84685022,3159.7,3159.1,3.16544]
[1738190244417,0.1611,3159.6,3159.0,3.16555]
[1738190244823,0.02886005,3159.5,3159.0,6.33102]
[1738190245311,0.02886005,3159.5,3158.7,3.16585]
[1738190245514,3.32635,3159.4,3158.7,3.16585]
[1738190245694,3.16532,3159.3,3158.5,3.16596]
[1738190246012,3.16532,3159.3,3158.6,3.16594]
[1738190246013,3.19405577,3159.3,3158.6,3.16594]
[1738190247207,3.16536,3159.2,3158.6,3.16594]
[1738190247414,3.16536,3159.2,3158.5,0.63114483]
[1738190247581,0.02861148,3159.1,3158.5,0.63114483]
[1738190248410,0.02861148,3159.1,3158.5,3.79713483]
[1738190248611,0.02861148,3159.1,3158.6,3.16595]
[1738190248921,3.32632,3159.4,3158.7,3.16584]
[1738190249065,0.02854933,3159.0,3158.5,3.16599]
[1738190249264,3.16528,3159.3,3158.5,3.16599]
[1738190249497,0.02827091,3158.9,3158.4,3.16611]
[1738190249698,3.16528,3159.3,3158.6,3.16594]
[1738190250256,0.02867363,3159.2,3158.6,3.16594]
[1738190251167,3.19404363,3159.2,3158.6,3.16594]
[1738190251495,3.19404363,3159.2,3158.4,3.16611]
[1738190251496,3.16547,3159.1,3158.4,3.16611]
[1738190251670,3.16547,3159.1,3158.3,0.64039376]
[1738190251671,3.32666,3159.0,3158.3,0.64039376]
[1738190251899,3.35459191,3159.0,3158.3,0.64039376]
[1738190252078,3.35459191,3159.0,3158.3,3.80664376]
[1738190252279,0.18903191,3159.0,3158.4,3.16615]
[1738190253806,3.35458191,3159.0,3158.4,3.16615]
[1738190254402,3.35458191,3159.0,3158.3,0.64039376]
[1738190254700,3.35458191,3159.0,3158.3,3.80662376]
[1738190256995,3.35458191,3159.0,3158.3,0.64039376]
[1738190257301,3.16566,3158.9,3158.2,3.16627]
[1738190257464,3.19357812,3158.9,3158.2,3.16627]
[1738190257861,3.19357812,3158.9,3157.6,3.16694]
[1738190257862,0.1611,3158.4,3157.6,0.7812]
[1738190258106,0.1611,3158.4,3157.8,3.16674]
[1738190258401,3.32728,3158.4,3157.8,3.16674]
[1738190258897,3.32727,3158.4,3157.8,3.16674]
[1738190259098,0.1611,3158.4,3157.8,3.16674]
[1738190259299,3.32727,3158.4,3157.8,3.16674]
[1738190260697,0.1611,3158.4,3158.0,3.16652]
[1738190261268,3.32726,3158.4,3157.8,3.16674]
[1738190261464,3.32726,3158.4,3157.7,3.16685]
[1738190262505,3.32726,3158.4,3157.6,3.16695]
[1738190262801,3.499046,3158.3,3157.6,3.16695]
[1738190263209,0.1611,3158.0,3157.4,3.16715]
[1738190263382,3.32766,3158.0,3157.4,3.16715]
[1738190263581,3.16667,3157.9,3157.2,3.4169]
[1738190263908,3.16667,3157.9,3157.3,3.16724]
[1738190266409,3.32768,3158.0,3157.3,3.16724]
[1738190267017,3.16667,3157.9,3157.3,3.16724]
[1738190267172,0.1611,3158.0,3157.3,3.16724]
[1738190267575,3.32769,3158.0,3157.3,3.16724]
[1738190268709,3.32769,3158.0,3157.4,3.16715]
[1738190269091,3.32769,3158.0,3157.3,3.16724]
[1738190269422,3.977097,3158.0,3157.3,3.16724]
[1738190270209,3.16666,3157.9,3157.3,3.16724]
[1738190271712,0.810507,3158.0,3157.3,3.16724]
[1738190271915,0.810507,3158.0,3157.4,3.16714]
[1738190273321,3.16667,3157.9,3157.2,3.41688]
[1738190273989,3.16667,3157.9,3157.3,3.1672]
[1738190274415,3.977087,3158.0,3157.3,3.1672]
[1738190275579,3.977087,3158.0,3157.3,6.3344]
[1738190275996,7.143737,3158.0,3157.3,3.1672]
[1738190276177,0.7143737,3157.9,3157.3,3.1672]
[1738190276378,3.16669,3157.9,3157.3,3.1672]
[1738190277009,3.16669,3157.9,3157.3,6.33439]
[1738190277813,3.16669,3157.9,3157.3,3.16719]
[1738190279089,0.1611,3158.0,3157.6,3.16689]
[1738190279311,0.1611,3158.3,3157.8,3.16673]
[1738190279815,0.1611,3158.3,3157.8,3.16667]
[1738190280700,3.16603,3158.6,3158.0,3.16649]
[1738190280907,3.815321,3158.6,3158.0,3.16649]
[1738190281104,0.1611,3158.7,3158.2,3.16634]
[1738190281308,0.1611,3158.7,3158.3,3.16616]
[1738190281610,3.32665,3159.0,3158.3,3.16616]
[1738190282315,3.32665,3159.0,3158.4,3.16613]
[1738190282513,3.975855,3159.0,3158.4,3.16613]
[1738190282681,3.32665,3159.0,3158.4,3.16613]
[1738190283117,0.1611,3159.5,3158.3,3.93916]
[1738190283412,0.1611,3159.5,3158.9,3.16558]
[1738190283616,3.658854,3159.5,3158.7,3.16583]
[1738190283801,3.16532,3159.3,3158.6,3.16594]
[1738190284808,3.16532,3159.3,3158.3,3.93915]
[1738190284979,3.16554,3159.1,3158.4,3.16615]
[1738190287990,3.16554,3159.1,3158.5,3.16603]
[1738190288299,3.798622,3159.1,3158.5,3.16603]
[1738190289119,3.16536,3159.2,3158.5,3.16603]
[1738190290088,3.658784,3159.5,3158.6,0.8255]
[1738190290317,3.16517,3159.4,3158.8,3.16575]
[1738190290827,3.16537,3159.2,3158.6,0.8255]
[1738190290999,3.16528,3159.3,3158.6,3.99141]
[1738190291203,3.658774,3159.5,3158.6,3.99141]
[1738190291411,3.658774,3159.5,3158.8,3.16573]
[1738190292026,0.3658774,3159.4,3158.8,3.16573]
[1738190292230,3.658774,3159.5,3159.0,3.16555]
[1738190292231,3.32616,3159.5,3159.0,3.16555]
[1738190292396,0.1611,3159.5,3159.0,3.16555]
[1738190292991,3.1652,3159.4,3158.8,3.16567]
[1738190293319,6.33002,3159.6,3158.9,3.92748]
[1738190293627,3.16497,3159.6,3158.9,3.92748]
[1738190294325,3.814054,3159.6,3158.9,3.92748]
[1738190295196,0.649084,3159.6,3159.1,3.16539]
[1738190295391,0.649084,3159.6,3158.9,0.7619]
[1738190295392,0.649084,3159.6,3159.0,3.16549]
[1738190295595,3.16509,3159.5,3158.9,0.7619]
[1738190295794,3.16564,3159.0,3158.3,3.16618]
[1738190295998,3.16574,3158.9,3158.2,3.92984]
[1738190297033,3.16586,3158.7,3158.2,0.7635]
[1738190297207,3.482446,3158.7,3158.1,0.7635]
[1738190297534,3.482446,3158.7,3157.8,3.93024]
[1738190297535,3.16607,3158.5,3157.8,3.93024]
[1738190297736,3.16622,3158.4,3157.8,3.93024]
[1738190298902,3.16636,3158.2,3157.5,3.16696]
[1738190299104,3.16627,3158.3,3157.6,0.61952451]
[1738190299406,3.16648,3158.1,3157.5,3.16705]
[1738190299822,3.16671,3157.9,3157.3,3.93699]
[1738190300044,3.16676,3157.8,3157.3,3.16719]
[1738190300358,3.16676,3157.8,3157.2,0.2496]